bitfinex/quotes_SOLUSD_20230105
["timestamp","ask_amount","ask_price","bid_price","bid_amount"]
[1672952273948,20.0,13.711,13.693,20.0]
[1672952274161,54.74,13.71,13.695,49.06470506]
[1672952274479,20.0,13.709,13.697,20.0]
[1672952275090,20.0,13.709,13.698,20.0]
[1672952275520,20.0,13.709,13.697,85.627622]
[1672952275734,312.0,13.71,13.701,20.0]
[1672952275937,111.7791,13.712,13.7,24.19]
[1672952276353,111.7791,13.712,13.701,20.0]
[1672952276988,20.0,13.711,13.701,20.0]
[1672952277414,111.7791,13.712,13.701,20.0]
[1672952278977,20.0,13.71,13.701,20.0]
[1672952280128,166.5091,13.712,13.701,20.0]
[1672952280129,20.0,13.711,13.701,20.0]
[1672952281098,166.5091,13.712,13.701,20.0]
[1672952281410,111.7791,13.712,13.701,20.0]
[1672952282892,20.0,13.711,13.701,20.0]
[1672952284159,166.5091,13.712,13.701,105.627622]
[1672952284351,111.7791,13.712,13.701,105.627622]
[1672952286967,423.7791,13.712,13.701,105.627622]
[1672952288650,20.0,13.711,13.701,105.627622]
[1672952288979,111.7791,13.712,13.701,105.627622]
[1672952289804,166.5091,13.712,13.701,105.627622]
[1672952290248,111.7791,13.712,13.701,105.627622]
[1672952291705,166.5091,13.712,13.701,105.627622]
[1672952291908,478.5091,13.712,13.701,105.627622]
[1672952296019,423.7791,13.712,13.701,105.627622]
[1672952296431,478.5091,13.712,13.702,9.19181858]
[1672952296645,478.5091,13.712,13.703,20.0]
[1672952296646,20.0,13.711,13.703,20.0]
[1672952296854,166.5091,13.712,13.703,20.0]
[1672952297385,166.5091,13.712,13.703,59.48569309]
[1672952297594,54.71,13.718,13.703,59.48569309]
[1672952297911,54.71,13.718,13.71,18.15]
[1672952298126,20.0,13.726,13.71,18.15]
[1672952298127,20.0,13.724,13.71,18.15]
[1672952298329,54.69,13.723,13.711,127.01555006]
[1672952298535,20.0,13.722,13.711,77.950845]
[1672952298757,20.0,13.72,13.711,77.950845]
[1672952299070,20.0,13.718,13.711,77.950845]
[1672952300125,20.0,13.716,13.711,77.950845]
[1672952300760,20.0,13.716,13.706,49.06470506]
[1672952300957,20.0,13.714,13.706,107.01555006]
[1672952301168,54.73,13.713,13.706,57.950845]
[1672952301797,54.72,13.715,13.706,57.950845]
[1672952302007,54.72,13.716,13.706,107.01555006]
[1672952303578,20.0,13.716,13.706,107.01555006]
[1672952303789,54.72,13.715,13.706,107.01555006]
[1672952304946,54.72,13.716,13.706,57.950845]
[1672952305165,20.0,13.715,13.706,57.950845]
[1672952305471,54.73,13.714,13.706,57.950845]
[1672952305889,54.72,13.716,13.706,9.19181858]
[1672952307905,20.0,13.715,13.706,9.19181858]
[1672952308111,54.73,13.714,13.706,9.19181858]
[1672952308309,20.0,13.713,13.706,9.19181858]
[1672952309901,54.73,13.712,13.706,9.19181858]
[1672952310108,20.0,13.713,13.706,9.19181858]
[1672952310433,54.73,13.714,13.706,9.19181858]
[1672952311377,20.0,13.713,13.703,45.57534956]
[1672952311582,135.472,13.713,13.704,20.0]
[1672952311802,20.0,13.711,13.704,20.0]
[1672952312851,20.0,13.709,13.704,20.0]
[1672952313062,20.0,13.709,13.7,20.0]
[1672952313472,20.0,13.711,13.7,20.0]
[1672952313473,54.75,13.708,13.7,20.0]
[1672952313683,20.0,13.709,13.7,20.0]
[1672952313896,54.75,13.708,13.7,20.0]
[1672952314107,54.74,13.71,13.7,65.57534956]
[1672952314306,54.73,13.712,13.701,79.9019732]
[1672952314516,54.73,13.712,13.702,20.0]
[1672952314736,54.73,13.712,13.703,20.0]
[1672952314945,115.472,13.713,13.704,20.0]
[1672952315270,54.73,13.712,13.704,76.4126177]
[1672952315465,54.73,13.712,13.705,10.83726814]
[1672952315675,115.472,13.713,13.706,20.0]
[1672952315881,312.0,13.712,13.706,20.0]
[1672952316847,312.0,13.712,13.706,30.83726814]
[1672952317039,366.73,13.712,13.706,30.83726814]
[1672952317559,312.0,13.712,13.706,30.83726814]
[1672952319471,312.0,13.712,13.706,20.0]
[1672952319688,312.0,13.712,13.705,20.0]
[1672952319689,366.73,13.712,13.705,20.0]
[1672952320204,20.0,13.711,13.705,20.0]
[1672952320607,54.73,13.712,13.705,20.0]
[1672952321029,20.0,13.711,13.705,20.0]
[1672952321362,20.0,13.711,13.702,20.0]
[1672952321573,20.0,13.709,13.702,20.0]
[1672952321977,20.0,13.709,13.7,20.0]
[1672952322401,54.74,13.71,13.7,65.57534956]
[1672952323023,54.74,13.711,13.701,20.0]
[1672952323240,54.73,13.712,13.702,20.0]
[1672952323448,113.4495,13.72,13.703,20.0]
[1672952323652,425.4495,13.72,13.711,20.0]
[1672952323879,425.4495,13.72,13.712,20.0]
[1672952324306,425.4495,13.72,13.712,77.69797575]
[1672952324515,425.4495,13.72,13.713,12.12262619]
[1672952324723,113.4495,13.72,13.713,12.12262619]
[1672952325035,113.4495,13.72,13.714,20.0]
[1672952326913,20.0,13.719,13.712,45.57534956]
[1672952327248,20.0,13.717,13.706,57.69797575]
[1672952327458,54.72,13.716,13.706,57.69797575]
[1672952327670,366.72,13.716,13.706,57.69797575]
[1672952328070,366.72,13.716,13.707,12.12262619]
[1672952328288,20.0,13.715,13.706,45.57534956]
[1672952328495,20.0,13.713,13.706,45.57534956]
[1672952328706,54.73,13.712,13.702,12.12262619]
[1672952329358,54.73,13.712,13.702,57.69797575]
[1672952330088,54.73,13.712,13.704,20.0]
[1672952330286,54.73,13.712,13.703,20.0]
[1672952330489,54.73,13.712,13.705,12.12262619]
[1672952330706,54.73,13.712,13.706,20.0]
[1672952332275,227.5234,13.713,13.706,20.0]
[1672952335557,20.0,13.712,13.706,20.0]
[1672952336501,227.5234,13.713,13.706,20.0]
[1672952336810,20.0,13.712,13.706,20.0]
[1672952337433,227.5234,13.713,13.706,20.0]
[1672952337966,20.0,13.712,13.706,20.0]
[1672952338286,227.5234,13.713,13.706,20.0]
[1672952339113,74.73,13.712,13.706,20.0]
[1672952339314,54.73,13.712,13.706,20.0]
[1672952340073,227.5234,13.713,13.706,20.0]
[1672952340802,54.73,13.712,13.706,20.0]
[1672952341006,54.73,13.712,13.704,20.0]
[1672952341329,54.73,13.712,13.705,12.12262619]
[1672952341539,54.73,13.712,13.706,20.0]
[1672952342259,227.5234,13.713,13.706,20.0]
[1672952342589,20.0,13.711,13.705,20.0]
[1672952343543,54.73,13.712,13.705,20.0]
[1672952343945,54.73,13.712,13.705,21.8214]
[1672952344157,54.73,13.712,13.705,25.3626]
[1672952345748,54.73,13.712,13.705,37.48522619]
[1672952346144,227.5234,13.713,13.705,37.48522619]
[1672952348171,54.73,13.712,13.705,37.48522619]
[1672952348374,366.73,13.712,13.705,37.48522619]
[1672952348890,366.73,13.712,13.705,25.3626]
[1672952349101,20.0,13.711,13.705,25.3626]
[1672952349318,54.74,13.71,13.705,25.3626]
[1672952349516,20.0,13.709,13.705,25.3626]
[1672952349947,54.74,13.71,13.705,25.3626]
[1672952352061,20.0,13.71,13.705,25.3626]
[1672952352243,54.74,13.711,13.705,25.3626]
[1672952352458,20.0,13.709,13.705,25.3626]
[1672952353097,312.0,13.71,13.705,25.3626]
[1672952353309,54.73,13.712,13.705,25.3626]
[1672952353836,54.73,13.712,13.706,12.12262619]
[1672952354045,227.5234,13.713,13.706,12.12262619]
[1672952356364,312.0,13.713,13.706,12.12262619]
[1672952356555,312.0,13.713,13.706,57.69797575]
[1672952356763,312.0,13.713,13.708,20.0]
[1672952357311,277.5901,13.713,13.709,106.76268081]
[1672952357514,113.4495,13.72,13.71,20.0]
[1672952357712,113.4495,13.72,13.71,206.42305928]
[1672952357926,113.4495,13.72,13.711,109.74899557]
[1672952358136,113.4495,13.72,13.711,60.68429051]
[1672952358366,54.69,13.722,13.711,48.56166432]
[1672952358787,20.0,13.721,13.711,48.56166432]
[1672952358974,54.7,13.72,13.711,48.56166432]
[1672952359187,20.0,13.719,13.711,48.56166432]
[1672952359394,54.71,13.718,13.707,12.12262619]
[1672952359606,54.71,13.718,13.708,48.56166432]
[1672952359817,54.71,13.719,13.708,48.56166432]
[1672952360045,54.71,13.719,13.71,20.0]
[1672952360259,54.71,13.719,13.709,12.12262619]
[1672952361622,20.0,13.718,13.709,12.12262619]
[1672952361833,20.0,13.716,13.708,48.56166432]
[1672952362653,54.71,13.717,13.708,48.56166432]
[1672952363089,54.71,13.717,13.709,12.12262619]
[1672952363301,54.71,13.719,13.709,32.12262619]
[1672952363699,54.69,13.722,13.71,84.82429051]
[1672952364030,54.68,13.726,13.711,182.75305928]
[1672952364349,54.68,13.726,13.712,110.26899557]
[1672952364553,54.68,13.726,13.713,20.0]
[1672952364766,20.0,13.722,13.713,182.75305928]
[1672952364968,74.69,13.722,13.713,130.26899557]
[1672952365931,54.69,13.722,13.713,130.26899557]
[1672952366121,54.68,13.725,13.713,130.26899557]
[1672952366450,20.0,13.722,13.713,68.56166432]
[1672952366651,74.69,13.722,13.713,68.56166432]
[1672952368334,74.69,13.722,13.713,80.68429051]
[1672952368539,109.8634,13.723,13.713,80.68429051]
[1672952369193,109.8634,13.723,13.713,84.22549051]
[1672952369797,54.68,13.725,13.713,84.22549051]
[1672952370006,20.0,13.725,13.713,133.81019557]
[1672952370434,20.0,13.723,13.713,186.29425928]
[1672952370638,54.69,13.724,13.714,48.56166432]
[1672952370849,332.0,13.725,13.715,20.0]
[1672952371063,332.0,13.725,13.715,122.06876877]
[1672952371273,332.0,13.725,13.716,49.58470506]
[1672952371497,20.0,13.723,13.716,49.58470506]
[1672952371818,54.69,13.724,13.716,49.58470506]
[1672952372634,20.0,13.724,13.716,49.58470506]
[1672952372849,54.68,13.725,13.716,49.58470506]
[1672952374007,54.68,13.726,13.718,20.0]
[1672952374227,166.3934,13.727,13.716,106.48876877]
[1672952374436,478.3934,13.727,13.719,54.1087048]
[1672952374875,312.0,13.727,13.721,20.0]
[1672952375075,312.0,13.727,13.722,20.0]
[1672952375278,312.0,13.727,13.723,20.0]
[1672952375483,54.63,13.738,13.724,20.0]
[1672952375698,20.0,13.732,13.724,75.94864845]
[1672952375903,54.65,13.733,13.725,55.94864845]
[1672952376144,54.65,13.733,13.726,20.0]
[1672952376340,54.63,13.737,13.726,20.0]
[1672952376560,20.0,13.736,13.727,55.94864845]
[1672952377065,20.0,13.734,13.727,55.94864845]
[1672952377276,54.64,13.735,13.727,55.94864845]
[1672952378340,20.0,13.736,13.727,55.94864845]
[1672952378549,54.64,13.735,13.727,55.94864845]
[1672952378979,312.0,13.737,13.728,12.12262619]
[1672952379292,312.0,13.737,13.731,20.0]
[1672952379482,54.6,13.745,13.732,20.0]
[1672952379689,54.6,13.745,13.732,75.55927678]
[1672952379690,20.0,13.744,13.732,75.55927678]
[1672952379903,54.61,13.743,13.733,55.55927678]
[1672952380117,54.61,13.743,13.734,20.0]
[1672952380553,54.61,13.743,13.734,75.55927678]
[1672952380769,54.61,13.744,13.734,75.55927678]
[1672952380969,20.0,13.743,13.734,75.55927678]
[1672952381183,54.61,13.742,13.734,75.55927678]
[1672952381916,20.0,13.745,13.734,87.68190297]
[1672952381917,54.61,13.744,13.734,87.68190297]
[1672952382446,366.61,13.744,13.734,87.68190297]
[1672952382972,20.0,13.743,13.734,87.68190297]
[1672952383184,54.61,13.742,13.734,87.68190297]
[1672952383689,54.61,13.744,13.734,87.68190297]
[1672952384530,54.6,13.745,13.734,87.68190297]
[1672952386957,312.0,13.746,13.735,57.92203814]
[1672952387176,312.0,13.746,13.74,24.14]
[1672952387368,312.0,13.746,13.742,20.0]
[1672952387582,54.57,13.754,13.743,20.0]
[1672952387799,54.57,13.754,13.743,75.54367678]
[1672952388334,54.57,13.754,13.744,67.66630297]
[1672952388518,20.0,13.756,13.745,20.0]
[1672952388733,20.0,13.756,13.745,87.66630297]
[1672952388734,54.56,13.755,13.745,87.66630297]
[1672952388945,20.0,13.754,13.746,55.54367678]
[1672952389170,54.57,13.753,13.746,55.54367678]
[1672952389582,169.3064,13.755,13.746,55.54367678]
[1672952389779,20.0,13.754,13.746,55.54367678]
[1672952389995,54.57,13.753,13.746,55.54367678]
[1672952390329,20.0,13.752,13.745,20.0]
[1672952390638,332.0,13.752,13.732,20.0]
[1672952390856,20.0,13.75,13.732,20.0]
[1672952391050,54.59,13.749,13.735,69.00466433]
[1672952391480,20.0,13.749,13.737,20.0]
[1672952391689,54.58,13.75,13.737,20.0]
[1672952391890,54.57,13.754,13.741,20.0]
[1672952392319,54.57,13.754,13.743,20.0]
[1672952392636,54.56,13.757,13.744,12.12262619]
[1672952392853,54.56,13.757,13.746,20.0]
[1672952393251,54.56,13.757,13.746,12.12262619]
[1672952393465,20.0,13.756,13.746,12.12262619]
[1672952393791,20.0,13.754,13.746,12.12262619]
[1672952394000,54.56,13.755,13.746,12.12262619]
[1672952394208,54.56,13.757,13.746,63.22233314]
[1672952394532,366.56,13.757,13.746,63.22233314]
[1672952394847,20.0,13.756,13.746,63.22233314]
[1672952395691,54.56,13.755,13.746,63.22233314]
[1672952397045,20.0,13.754,13.732,20.0]
[1672952397247,20.0,13.754,13.72,96.64]
[1672952397248,24.17,13.75,13.73,140.0356]
[1672952397459,163.935,13.749,13.73,140.0356]
[1672952397673,183.935,13.749,13.733,12.12262619]
[1672952397882,112.1937,13.748,13.731,96.91140918]
[1672952398084,54.59,13.747,13.731,96.91140918]
[1672952398294,20.0,13.746,13.733,20.0]
[1672952398502,54.6,13.745,13.732,47.0112547]
[1672952398726,54.6,13.745,13.723,114.8662]
[1672952398930,20.0,13.744,13.728,20.0]
[1672952399151,54.61,13.743,13.728,20.0]
[1672952399357,54.61,13.743,13.729,20.0]
[1672952399358,20.0,13.742,13.729,20.0]
[1672952399580,54.62,13.741,13.729,20.0]
[1672952400432,54.61,13.743,13.729,32.12262619]
[1672952400642,54.61,13.743,13.729,79.13388089]
[1672952400966,54.61,13.743,13.73,56.12]
[1672952401268,54.6,13.745,13.731,67.0112547]
[1672952401460,54.6,13.746,13.732,20.0]
[1672952401672,54.6,13.746,13.732,127.4059446]
[1672952401882,54.59,13.747,13.734,20.0]
[1672952402088,54.59,13.747,13.735,20.0]
[1672952402316,74.57,13.753,13.736,20.0]
[1672952402517,74.57,13.753,13.736,79.74783014]
[1672952402721,74.57,13.753,13.736,67.0112547]
[1672952402929,96.98737149,13.753,13.737,12.73657544]
[1672952403574,35.91,13.75,13.735,20.0]
[1672952403797,312.0,13.747,13.735,20.0]
[1672952404007,20.0,13.745,13.734,0.0614]
[1672952404194,54.61,13.744,13.734,12.79797544]
[1672952404403,54.61,13.744,13.735,20.0]
[1672952404633,54.6,13.745,13.735,20.0]
[1672952405032,20.0,13.744,13.734,0.0614]
[1672952405241,20.0,13.742,13.734,0.0614]
[1672952405994,20.0,13.739,13.725,20.0]
[1672952406209,54.63,13.738,13.725,12.73657544]
[1672952406522,54.63,13.738,13.726,32.73657544]
[1672952406734,116.0261,13.748,13.734,1.8214]
[1672952406939,110.872,13.745,13.734,1.8214]
[1672952407340,20.0,13.744,13.734,21.8214]
[1672952407554,20.0,13.744,13.734,5.3626]
[1672952407873,54.61,13.743,13.734,5.3626]
[1672952408085,20.0,13.742,13.735,20.0]
[1672952408617,36.13,13.74,13.734,5.3626]
[1672952408834,20.0,13.738,13.72,74.2022]
[1672952409146,20.0,13.736,13.723,12.73657544]
[1672952409356,54.64,13.735,13.723,12.73657544]
[1672952409565,54.64,13.735,13.707,152.80230658]
[1672952409758,54.64,13.735,13.714,12.73657544]
[1672952409970,20.0,13.734,13.714,20.0]
[1672952410180,20.0,13.732,13.715,32.73657544]
[1672952410391,54.66,13.731,13.716,20.0]
[1672952410707,20.0,13.73,13.715,32.73657544]
[1672952411349,54.67,13.729,13.715,32.73657544]
[1672952411544,20.0,13.728,13.712,20.0]
[1672952411761,20.0,13.726,13.716,12.73657544]
[1672952412191,54.68,13.725,13.711,67.0112547]
[1672952412513,20.0,13.724,13.712,12.73657544]
[1672952413757,20.0,13.722,13.713,20.0]
[1672952414178,20.0,13.722,13.713,12.73657544]
[1672952414600,54.69,13.723,13.713,12.73657544]
[1672952415464,54.69,13.723,13.714,20.0]
[1672952415677,20.0,13.722,13.714,20.0]
[1672952415999,20.0,13.722,13.709,32.73657544]
[1672952416191,20.0,13.72,13.709,32.73657544]
[1672952416522,54.7,13.721,13.71,12.73657544]
[1672952416717,54.7,13.721,13.711,20.0]
[1672952416930,20.0,13.722,13.711,20.0]
[1672952417142,20.0,13.72,13.712,12.73657544]
[1672952417362,20.0,13.72,13.711,20.0]
[1672952417559,20.0,13.72,13.709,12.73657544]
[1672952417771,20.0,13.72,13.71,20.0]
[1672952418201,54.7,13.721,13.711,12.73657544]
[1672952418623,20.0,13.72,13.712,20.0]
[1672952419363,20.0,13.72,13.708,20.0]
[1672952420517,54.7,13.721,13.708,20.0]
[1672952422302,20.0,13.72,13.708,20.0]
[1672952422492,20.0,13.718,13.706,20.0]
[1672952422917,20.0,13.716,13.701,20.0]
[1672952423131,54.72,13.715,13.701,20.0]
[1672952423342,20.0,13.714,13.704,12.73657544]
[1672952423878,54.73,13.713,13.704,12.73657544]
[1672952424082,20.0,13.712,13.704,12.73657544]
[1672952424405,54.73,13.713,13.704,12.73657544]
[1672952424910,20.0,13.712,13.704,12.73657544]
[1672952425120,20.0,13.712,13.705,20.0]
[1672952425549,20.0,13.712,13.689,280.41959426]
[1672952425750,20.0,13.712,13.682,152.80230658]
[1672952425751,36.13,13.7,13.683,20.0]
[1672952425975,54.79,13.699,13.683,20.0]
[1672952426295,20.0,13.704,13.683,20.0]
[1672952426497,20.0,13.702,13.683,32.73657544]
[1672952426933,20.0,13.702,13.683,20.0]
[1672952427338,54.78,13.701,13.683,32.73657544]
[1672952427759,20.0,13.7,13.683,32.73657544]
[1672952427965,54.79,13.699,13.683,20.0]
[1672952428386,54.79,13.699,13.685,20.0]
[1672952428612,54.78,13.701,13.686,20.0]
[1672952430826,20.0,13.7,13.686,20.0]
[1672952431044,54.79,13.699,13.686,20.0]
[1672952431230,20.0,13.698,13.686,20.0]
[1672952431439,20.0,13.698,13.685,20.0]
[1672952431654,20.0,13.698,13.686,20.0]
[1672952431884,20.0,13.696,13.684,20.0]
[1672952432071,54.8,13.695,13.679,20.0]
[1672952432403,20.0,13.694,13.679,20.0]
[1672952432601,54.81,13.693,13.679,20.0]
[1672952434808,54.81,13.693,13.68,20.0]
[1672952436592,20.0,13.694,13.68,20.0]
[1672952436802,54.81,13.693,13.68,20.0]
[1672952437042,20.0,13.692,13.68,20.0]
[1672952437231,54.82,13.691,13.68,20.0]
[1672952437449,20.0,13.692,13.677,20.0]
[1672952437772,20.0,13.692,13.678,20.0]
[1672952439140,54.82,13.691,13.678,22.035]
[1672952439351,20.0,13.69,13.678,22.035]
[1672952439868,20.0,13.688,13.674,3.289]
[1672952440065,54.83,13.687,13.672,22.632]
[1672952440280,20.0,13.686,13.672,22.632]
[1672952440592,54.84,13.685,13.673,20.0]
[1672952440806,54.83,13.687,13.673,20.0]
[1672952441029,20.0,13.686,13.673,20.0]
[1672952441355,54.83,13.687,13.673,20.0]
[1672952443130,54.83,13.687,13.674,20.0]
[1672952445339,20.0,13.686,13.674,20.0]
[1672952445531,54.84,13.685,13.674,20.0]
[1672952445943,54.84,13.685,13.673,20.0]
[1672952447631,20.0,13.684,13.673,20.0]
[1672952448063,54.85,13.683,13.672,20.0]
[1672952448269,20.0,13.682,13.672,20.0]
[1672952448479,20.0,13.682,13.671,20.0]
[1672952448683,20.0,13.682,13.669,20.0]
[1672952450050,20.0,13.68,13.669,20.0]
[1672952450265,20.0,13.68,13.668,20.0]
[1672952450488,20.0,13.68,13.667,20.0]
[1672952451002,20.0,13.678,13.667,20.0]
[1672952451213,20.0,13.68,13.667,20.0]
[1672952451429,54.86,13.681,13.668,20.0]
[1672952451747,54.85,13.682,13.668,39.32]
[1672952451935,54.85,13.682,13.669,20.0]
[1672952452143,20.0,13.681,13.669,20.0]
[1672952452795,54.86,13.68,13.669,20.0]
[1672952452987,20.0,13.679,13.666,40.0]
[1672952453198,54.87,13.678,13.666,40.0]
[1672952454056,54.86,13.68,13.666,40.0]
[1672952454780,20.0,13.679,13.666,20.0]
[1672952454987,20.0,13.677,13.666,20.0]
[1672952455214,54.87,13.678,13.666,40.0]
[1672952455414,54.87,13.678,13.666,20.0]
[1672952455838,20.0,13.677,13.661,20.0]
[1672952456051,20.0,13.675,13.66,200.6699607]
[1672952456260,54.89,13.674,13.66,200.6699607]
[1672952457118,54.89,13.674,13.661,20.0]
[1672952458279,54.88,13.675,13.661,20.0]
[1672952458490,20.0,13.674,13.661,20.0]
[1672952458800,20.0,13.674,13.66,164.2999607]
[1672952458801,54.89,13.673,13.66,164.2999607]
[1672952458997,54.89,13.673,13.661,40.0]
[1672952459207,54.89,13.673,13.661,20.0]
[1672952459416,20.0,13.672,13.661,20.0]
[1672952459639,20.0,13.67,13.661,20.0]
[1672952460062,54.91,13.669,13.661,20.0]
[1672952460273,54.9,13.671,13.661,20.0]
[1672952461120,20.0,13.674,13.661,20.0]
[1672952461121,20.0,13.672,13.661,20.0]
[1672952461451,20.0,13.669,13.66,164.2999607]
[1672952461618,54.91,13.668,13.66,164.2999607]
[1672952461826,20.0,13.667,13.66,164.2999607]
[1672952462058,54.92,13.666,13.66,131.2898607]
[1672952462266,54.92,13.666,13.66,4.6615607]
[1672952462484,20.0,13.665,13.66,4.6615607]
[1672952462693,54.93,13.664,13.66,4.6615607]
[1672952462898,54.93,13.664,13.656,189.5412111]
[1672952462899,20.0,13.663,13.656,189.5412111]
[1672952463217,54.93,13.662,13.656,189.5412111]
[1672952463412,20.0,13.661,13.656,189.5412111]
[1672952463844,54.93,13.662,13.656,189.5412111]
[1672952464371,36.43,13.68,13.656,189.5412111]
[1672952464587,20.0,13.677,13.661,20.0]
[1672952464777,54.88,13.676,13.66,36.13]
[1672952464988,20.0,13.675,13.662,65.80347154]
[1672952465313,20.0,13.673,13.663,32.73657544]
[1672952465531,20.0,13.673,13.664,20.0]
[1672952465722,54.89,13.672,13.661,20.0]
[1672952465934,20.0,13.671,13.661,20.0]
[1672952466140,54.9,13.67,13.658,73.60675867]
[1672952466469,54.9,13.67,13.658,12.73657544]
[1672952466470,20.0,13.669,13.658,12.73657544]
[1672952466688,54.91,13.668,13.658,12.73657544]
[1672952466890,20.0,13.667,13.658,12.73657544]
[1672952467420,54.91,13.668,13.658,12.73657544]
[1672952468072,169.3183,13.671,13.659,20.0]
[1672952468263,230.8962,13.671,13.659,20.0]
[1672952468454,20.0,13.67,13.66,12.73657544]
[1672952468978,20.0,13.67,13.661,20.0]
[1672952469404,20.0,13.67,13.662,12.73657544]
[1672952469609,74.9,13.67,13.662,12.73657544]
[1672952470038,111.03,13.67,13.656,189.5412111]
[1672952470247,22.41737149,13.669,13.656,189.5412111]
[1672952470452,20.0,13.667,13.656,189.5412111]
[1672952470664,54.92,13.666,13.656,189.5412111]
[1672952471601,20.0,13.665,13.656,189.5412111]
[1672952471847,54.93,13.664,13.656,189.5412111]
[1672952473831,20.0,13.663,13.656,189.5412111]
[1672952474881,54.92,13.666,13.656,189.5412111]
[1672952475085,54.91,13.667,13.656,164.5412111]
[1672952475296,20.0,13.668,13.656,164.5412111]
[1672952475506,20.0,13.666,13.656,164.5412111]
[1672952475727,20.0,13.666,13.656,220.34780766]
[1672952476243,54.92,13.665,13.656,220.34780766]
[1672952476454,20.0,13.664,13.656,164.5412111]
[1672952477103,54.92,13.665,13.656,164.5412111]
[1672952477309,20.0,13.666,13.656,164.5412111]
[1672952477732,54.91,13.667,13.656,164.5412111]
[1672952477945,20.0,13.666,13.656,164.5412111]
[1672952478559,54.92,13.665,13.656,164.5412111]
[1672952478891,20.0,13.664,13.656,164.5412111]
[1672952479102,54.93,13.663,13.656,164.5412111]
[1672952479513,20.0,13.664,13.656,164.5412111]
[1672952479928,20.0,13.662,13.656,164.5412111]
[1672952480239,20.0,13.664,13.656,164.5412111]
[1672952480772,54.92,13.665,13.656,164.5412111]
[1672952481395,20.0,13.664,13.656,164.5412111]
[1672952482469,20.0,13.662,13.656,164.5412111]
[1672952482877,20.0,13.664,13.656,164.5412111]
[1672952484653,119.3411,13.665,13.656,164.5412111]
[1672952485301,312.0,13.662,13.656,164.5412111]
[1672952485717,312.0,13.662,13.656,219.86349268]
[1672952485932,312.0,13.662,13.656,264.10795809]
[1672952486146,293.6134,13.662,13.656,276.84453353]
[1672952486353,366.89,13.674,13.658,20.0]
[1672952486555,117.4425,13.673,13.66,36.13]
[1672952486762,117.4425,13.673,13.661,20.0]
[1672952487091,117.4425,13.673,13.662,20.0]
[1672952487293,117.4425,13.673,13.663,20.0]
[1672952487512,117.4425,13.673,13.663,75.32228158]
[1672952488561,117.4425,13.673,13.664,55.32228158]
[1672952488765,54.87,13.677,13.666,20.0]
[1672952488977,111.7206,13.677,13.664,68.05885702]
[1672952489185,111.7206,13.677,13.666,55.32228158]
[1672952489394,166.5906,13.677,13.666,55.32228158]
[1672952489937,166.5906,13.677,13.666,68.05885702]